bitfinex-derivatives/quotes_ETHF0:USTF0_20250105
["timestamp","ask_amount","ask_price","bid_price","bid_amount"]
[1736090520741,86.185,3622.4,3622.3,5.13632707]
[1736090521535,87.83451,3622.4,3622.3,4.88780707]
[1736090521943,91.04231,3622.4,3622.3,4.88780707]
[1736090522547,0.24852,3622.3,3622.2,6.43305095]
[1736090523143,2.33026017,3622.3,3622.2,6.43305095]
[1736090523843,0.24854,3622.0,3621.9,4.30773408]
[1736090525744,2.33028017,3622.0,3621.9,4.30773408]
[1736090527253,2.33028017,3622.0,3621.7,6.43305095]
[1736090527254,0.24855,3621.8,3621.7,4.30773408]
[1736090527952,3.90025,3621.8,3621.7,4.30773408]
[1736090528953,3.6517,3621.8,3621.6,4.30773408]
[1736090529255,2.80110017,3621.7,3621.6,4.30773408]
[1736090530460,2.55254017,3621.7,3621.3,3.58973408]
[1736090530656,2.08174017,3621.4,3621.3,3.58973408]
[1736090530850,2.33032017,3621.4,3621.3,3.58973408]
[1736090531862,0.24859,3621.2,3621.0,0.4614]
[1736090532054,0.4413,3621.1,3621.0,0.71001]
[1736090532854,0.4413,3621.1,3621.0,0.4614]
[1736090533255,0.6899,3621.1,3621.0,0.4614]
[1736090534052,0.4413,3621.1,3621.0,0.4614]
[1736090536854,0.4413,3621.1,3621.0,0.71001]
[1736090537258,0.6899,3621.1,3621.0,0.4614]
[1736090540953,1.44869284,3621.1,3621.0,0.4614]
[1736090541957,87.63369284,3621.1,3621.0,0.4614]
[1736090543968,0.24862,3620.9,3620.7,3.2078]
[1736090544168,1.00739284,3620.8,3620.7,3.667]
[1736090544465,1.25601284,3620.8,3620.7,3.667]
[1736090544768,1.00739284,3620.8,3620.7,3.667]
[1736090545065,2.08392429,3620.8,3620.7,3.667]
[1736090545268,2.33254429,3620.8,3620.7,3.667]
[1736090545467,2.08392429,3620.8,3620.2,3.2078]
[1736090545767,2.08392429,3620.8,3620.4,0.4592]
[1736090545960,0.24863,3620.7,3620.5,0.24864]
[1736090546161,0.24863,3620.7,3620.4,0.4592]
[1736090546162,0.24864,3620.6,3620.4,0.4592]
[1736090546356,0.423,3620.5,3620.4,0.70785]
[1736090547164,2.08392429,3620.8,3620.6,0.24863]
[1736090547372,2.08392429,3620.8,3620.4,0.4592]
[1736090547567,2.08392429,3620.8,3620.7,0.24863]
[1736090549165,88.51752429,3621.1,3620.9,0.24861]
[1736090549364,86.185,3621.1,3621.0,0.66771]
[1736090549669,86.185,3621.1,3621.0,0.4191]
[1736090549871,86.4336,3621.1,3621.0,0.4191]
[1736090551774,86.4336,3621.1,3621.0,0.66771]
[1736090552372,0.24861,3621.0,3620.9,0.24861]
[1736090552674,88.51753429,3621.1,3620.9,0.24861]
[1736090553074,88.51753429,3621.1,3620.7,0.4351]
[1736090553075,88.26892429,3621.1,3620.7,0.4351]
[1736090553266,0.24861,3621.0,3620.8,0.24861]
[1736090555474,88.26892429,3621.1,3620.7,0.4351]
[1736090555670,0.24862,3620.9,3620.7,0.68373]
[1736090556268,0.24862,3620.8,3620.7,0.4351]
[1736090556772,0.24862,3620.9,3620.7,0.4351]
[1736090557074,0.24862,3620.8,3620.7,0.4351]
[1736090557978,86.185,3620.9,3620.7,0.4351]
[1736090558179,86.185,3620.9,3620.8,0.24862]
[1736090559473,86.185,3620.9,3620.8,2.33254429]
[1736090559779,86.185,3620.9,3620.8,3.42754429]
[1736090561676,82.0410228,3620.9,3620.8,8.29233449]
[1736090562468,82.0410228,3620.9,3620.8,6.2084102]
[1736090565175,82.0410228,3620.9,3620.8,1.34362]
[1736090566580,82.0410228,3620.9,3620.8,7.7993688]
[1736090568191,82.0410228,3620.9,3620.8,12.56960362]
[1736090569188,82.0410228,3620.9,3620.8,6.11385482]
[1736090572086,82.0410228,3620.9,3620.8,15.66166399]
[1736090572585,80.53585816,3620.9,3620.8,20.66166399]
[1736090572980,80.53585816,3620.9,3620.8,15.66166399]
[1736090573179,80.53585816,3620.9,3620.8,15.88264616]
[1736090573985,74.73442483,3620.9,3620.8,15.66166399]
[1736090575785,74.73442483,3620.9,3620.8,14.56666399]
[1736090577086,74.73442483,3620.9,3620.8,11.49015357]
[1736090578590,74.73442483,3620.9,3620.8,13.64725315]
[1736090580295,74.73442483,3620.9,3620.8,14.28070305]
[1736090581587,74.73442483,3620.9,3620.8,25.0627869]
[1736090582694,73.78302484,3620.9,3620.8,25.0627869]
[1736090582893,73.78302484,3620.9,3620.8,30.0627869]
[1736090584193,73.78302484,3620.9,3620.8,19.28070305]
[1736090584395,73.78302484,3620.9,3620.8,14.28070305]
[1736090584995,73.78302484,3620.9,3620.8,15.48910734]
[1736090585196,73.78302484,3620.9,3620.8,14.28070305]
[1736090587893,73.78302484,3620.9,3620.8,20.48924804]
[1736090588597,71.96069484,3620.9,3620.8,20.48924804]
[1736090588801,71.19788484,3620.9,3620.8,20.48924804]
[1736090588992,70.36534485,3620.9,3620.8,20.48924804]
[1736090589496,70.36534485,3620.9,3620.8,15.48924804]
[1736090590291,69.09543485,3620.9,3620.8,15.48924804]
[1736090591002,68.90339339,3620.9,3620.8,14.28070305]
[1736090591397,68.90339339,3620.9,3620.8,15.37570305]
[1736090591596,68.90339339,3620.9,3620.8,14.28070305]
[1736090593202,68.90339339,3620.9,3620.8,25.05528351]
[1736090593593,68.90339339,3620.9,3620.8,26.26390729]
[1736090594006,68.90339339,3620.9,3620.8,25.05528351]
[1736090594297,68.90339339,3620.9,3620.8,26.15028351]
[1736090594503,68.90339339,3620.9,3620.8,15.37570305]
[1736090594802,68.90339339,3620.9,3620.8,16.58428429]
[1736090595605,68.90339339,3620.9,3620.8,15.37570305]
[1736090596303,68.90339339,3620.9,3620.8,16.58430084]
[1736090596500,63.26946288,3620.9,3620.8,21.58430084]
[1736090596700,60.31672288,3620.9,3620.8,21.58430084]
[1736090597007,58.17198288,3620.9,3620.8,21.58430084]
[1736090597208,56.87293739,3620.9,3620.8,21.58430084]
[1736090597502,52.00295739,3620.9,3620.8,21.58430084]
[1736090597800,30.20006278,3620.9,3620.8,21.58430084]
[1736090598006,16.41752439,3620.9,3620.8,21.58430084]
[1736090598214,6.49024839,3620.9,3620.8,21.58430084]
[1736090598404,3.00170388,3620.9,3620.8,21.58430084]
[1736090598600,0.9223,3622.3,3622.2,0.24852]
[1736090598907,0.9223,3622.3,3622.2,3.45632]
[1736090601002,0.9223,3622.3,3622.2,14.6901223]
[1736090601615,0.4549,3622.5,3622.4,0.24851]
[1736090601797,0.4549,3622.5,3622.4,2.33243429]
[1736090602503,0.4549,3622.5,3622.4,7.10266911]
[1736090603908,0.4549,3622.5,3622.4,15.72075909]
[1736090604109,0.4549,3622.5,3622.4,13.6368348]
[1736090605409,0.4549,3622.5,3622.4,11.47269464]
[1736090605904,0.9127,3623.0,3622.9,0.24848]
[1736090606206,0.9127,3623.0,3622.9,4.55028]
[1736090606402,0.4472,3623.0,3622.9,4.55028]
[1736090608012,0.4472,3623.0,3622.9,9.32051482]
[1736090608505,0.4153,3623.3,3623.2,0.24846]
[1736090608903,0.8732,3623.3,3623.2,0.24846]
[1736090610202,0.8732,3623.3,3623.0,0.24846]
[1736090610408,0.8732,3623.3,3622.9,10.74964924]
[1736090610409,0.8732,3623.3,3623.1,0.24846]
[1736090610703,0.8732,3623.3,3623.0,0.24847]
[1736090610899,0.8732,3623.3,3623.1,0.24846]
[1736090611809,0.8732,3623.3,3623.2,0.24846]
[1736090614410,0.8732,3623.3,3622.9,4.3018]
[1736090614911,0.8732,3623.3,3622.9,4.55027]
[1736090615115,2.08392429,3623.2,3622.9,3.2078]
[1736090615412,2.08392429,3623.2,3622.8,1.094]
[1736090615612,2.33238429,3623.2,3622.8,1.094]
[1736090617215,2.33238429,3623.2,3622.8,1.34248]
[1736090617615,2.08392429,3623.2,3622.8,1.094]
[1736090617821,2.08392429,3623.2,3622.9,0.24847]
[1736090618316,0.8732,3623.3,3623.0,0.24847]
[1736090618717,1.12165,3623.3,3623.0,0.24847]
[1736090618919,0.8732,3623.3,3622.8,1.094]
[1736090619110,0.8732,3623.3,3623.0,0.24847]
[1736090619511,0.8732,3623.3,3623.1,0.24846]
[1736090619712,0.8732,3623.3,3622.8,1.094]
[1736090619912,1.12165,3623.3,3623.0,0.24846]
[1736090620112,1.12165,3623.3,3623.1,0.24846]
[1736090621718,0.8732,3623.3,3622.7,1.094]
[1736090621918,0.8732,3623.3,3623.1,0.24846]
[1736090621919,1.12165,3623.3,3623.1,0.24846]
[1736090623321,0.8732,3623.3,3622.8,0.24848]
[1736090623520,0.8732,3623.3,3622.7,1.094]
[1736090623821,0.8732,3623.3,3623.2,0.24846]
[1736090624918,2.08392429,3623.9,3623.0,3.2078]
[1736090625221,0.4323,3623.5,3623.4,3.45624]
[1736090625523,0.4323,3623.5,3623.4,1.34244]
[1736090627128,2.95602429,3623.9,3623.7,0.24842]
[1736090627319,0.4185,3623.8,3623.7,0.24842]
[1736090628226,0.4185,3623.8,3623.6,0.24843]
[1736090628417,0.4185,3623.8,3623.4,1.094]
[1736090628622,0.4185,3623.8,3623.6,0.24842]
[1736090629928,0.4185,3623.8,3623.4,1.094]
[1736090630230,0.4185,3623.8,3623.7,0.24842]
[1736090630428,0.8721,3623.9,3623.8,0.24842]
[1736090630629,0.4148,3623.9,3623.8,0.24842]
[1736090633132,0.4148,3623.9,3623.7,3.45622]
[1736090633429,2.49872429,3623.9,3623.7,3.45622]
[1736090633929,2.49872429,3623.9,3623.7,0.24842]
[1736090635932,2.08392429,3624.2,3623.7,0.24842]
[1736090636230,2.08392429,3624.2,3623.8,0.24841]
[1736090636923,2.33231429,3624.2,3623.8,0.24841]
[1736090637335,2.08392429,3624.2,3623.6,3.2078]
[1736090637631,0.4586,3624.3,3624.0,0.2484]
[1736090637829,0.70698,3624.3,3623.9,0.24841]
[1736090638031,0.24839,3624.2,3623.9,0.24841]
[1736090638233,0.4586,3624.3,3623.9,0.24841]
[1736090638433,0.70698,3624.3,3623.9,0.24841]
[1736090638734,2.08392429,3624.2,3623.7,0.4291]
[1736090639027,2.08392429,3624.2,3623.7,0.24842]
[1736090639227,0.24841,3624.0,3623.7,0.24842]
[1736090639428,0.2484,3624.1,3623.8,0.24841]
[1736090639628,0.4452,3623.9,3623.8,0.24841]
[1736090640229,0.4452,3623.9,3623.6,4.3008]
[1736090640535,0.4351,3623.8,3623.7,0.24842]
[1736090643547,0.24842,3623.7,3623.6,3.2078]
[1736090643839,0.67472,3623.7,3623.5,0.4291]
[1736090644147,0.24843,3623.6,3623.5,0.4291]
[1736090644846,0.67473,3623.7,3623.5,0.4291]
[1736090645144,0.4263,3623.7,3623.5,0.4291]
[1736090645540,0.4263,3623.7,3623.6,0.24843]
[1736090646051,0.4263,3623.7,3623.5,0.4291]
[1736090646246,0.4263,3623.7,3623.5,0.67753]
[1736090650347,0.4263,3623.7,3623.5,0.4291]
[1736090650742,0.67472,3623.7,3623.5,0.4291]
[1736090650945,0.67472,3623.7,3623.3,9.65564924]
[1736090650946,0.24844,3623.5,3623.3,9.65564924]
[1736090651256,0.24844,3623.4,3623.3,4.30908732]
[1736090651447,0.68554,3623.4,3623.3,4.30908732]
[1736090653154,0.4371,3623.4,3623.0,0.24847]
[1736090653354,2.08392429,3623.3,3622.8,4.30908732]
[1736090653550,2.08392429,3623.0,3622.8,4.30908732]
[1736090653749,0.66698,3622.9,3622.8,4.30908732]
[1736090653948,1.10878,3622.9,3622.8,4.30908732]
[1736090654752,1.10878,3622.9,3622.5,4.30908732]
[1736090654753,0.8603,3622.9,3622.5,4.30908732]
[1736090654952,0.8603,3622.9,3622.5,4.55758732]
[1736090655148,0.24848,3622.8,3622.6,0.24849]
[1736090655353,0.24848,3622.8,3622.5,4.96748732]
[1736090655552,0.8603,3622.9,3622.5,4.71898732]
[1736090655553,0.24849,3622.7,3622.5,4.71898732]
[1736090656351,0.24849,3622.7,3622.5,0.4099]
[1736090658556,0.8603,3622.9,3622.5,0.4099]
[1736090658758,0.24849,3622.8,3622.5,0.4099]
[1736090658959,0.8603,3622.9,3622.5,0.4099]
[1736090659259,0.24849,3622.7,3622.5,0.4099]
[1736090659455,0.8603,3622.9,3622.5,0.4099]
[1736090659662,0.2485,3622.6,3622.5,0.4099]
[1736090659960,0.2485,3622.7,3622.5,0.4099]
[1736090660158,0.4293,3622.6,3622.5,0.4099]
[1736090670062,0.4293,3622.6,3622.3,0.24852]
[1736090670858,0.4293,3622.6,3622.4,0.24851]
[1736090671370,0.4293,3622.6,3622.2,0.4211]
[1736090671663,0.4293,3622.6,3622.4,0.24851]
[1736090672460,0.4293,3622.6,3622.3,0.24851]
[1736090673461,0.4293,3622.6,3622.4,0.24851]
[1736090674863,0.24847,3623.0,3622.4,0.24851]
[1736090675167,0.65938,3622.9,3622.4,0.24851]
[1736090675363,0.24849,3622.8,3622.4,0.24851]
[1736090676666,2.08392429,3623.0,3622.2,0.4211]
[1736090676871,0.24848,3622.9,3622.5,0.2485]
[1736090677171,1.53618,3622.9,3622.5,0.2485]
[1736090677366,0.24849,3622.8,3622.4,0.24851]
[1736090678963,1.00644038,3622.6,3622.4,0.24851]
[1736090680158,1.00644038,3622.6,3622.2,3.6289]
[1736090680363,1.00644038,3622.6,3622.5,0.2485]
[1736090682468,1.2877,3622.9,3622.5,1.00644038]
[1736090682669,1.2877,3622.9,3622.8,0.24848]
[1736090687969,1.2877,3622.9,3622.7,0.24849]
[1736090688172,1.00644038,3622.8,3622.7,0.24849]
[1736090696477,1.00644038,3622.8,3622.7,4.55757732]
[1736090696478,3.17548246,3622.8,3622.7,4.55757732]
[1736090697885,3.17548246,3622.8,3622.7,4.90798709]
[1736090699088,1.00644038,3622.8,3622.7,11.35583633]
[1736090700182,4.53258327,3622.9,3622.7,12.11378671]
[1736090700486,3.24488327,3622.9,3622.8,0.24848]
[1736090701985,2.17299875,3622.9,3622.8,4.90797709]
[1736090702989,3.17943913,3622.9,3622.8,4.65949709]
[1736090703190,3.17943913,3622.9,3622.8,11.14126712]
[1736090703889,3.42791913,3622.9,3622.8,11.14126712]
[1736090704093,3.17943913,3622.9,3622.8,11.38974712]
[1736090704280,3.17943913,3622.9,3622.8,11.14126712]
[1736090704583,6.63571913,3622.9,3622.8,11.14126712]
[1736090705985,6.63571913,3622.9,3622.7,4.32229303]
[1736090705986,4.21424038,3622.9,3622.7,4.32229303]
[1736090706288,0.24848,3622.8,3622.7,4.32229303]
[1736090707493,0.24849,3622.7,3622.6,4.32229303]
[1736090707687,1.70813038,3622.7,3622.6,4.32229303]
[1736090708784,4.96735754,3622.7,3622.6,4.32229303]
[1736090710193,4.71886754,3622.7,3622.6,4.57079303]
[1736090710384,3.25922716,3622.7,3622.6,4.57079303]
[1736090711286,2.17255645,3622.8,3622.6,4.90988308]
[1736090711690,2.17255645,3622.8,3622.7,0.4483]
[1736090712189,2.17255645,3622.8,3622.7,0.69679]
[1736090712585,2.17255645,3622.8,3622.7,11.84118816]
[1736090714784,2.17255645,3622.8,3622.7,11.59269816]
[1736090715597,2.17255645,3622.8,3622.7,11.84118816]
[1736090715897,2.17255645,3622.8,3622.7,11.59269816]
[1736090717594,2.17255645,3622.8,3622.7,11.84118816]
[1736090718697,4.51414754,3622.9,3622.7,5.35817308]
[1736090719795,4.51414754,3622.9,3622.8,4.32121596]
[1736090724300,5.33972195,3622.9,3622.6,4.32121596]
[1736090724598,5.33972195,3622.9,3622.6,4.56971596]
[1736090724599,1.25493038,3622.7,3622.6,4.56971596]
[1736090725601,4.51416132,3622.7,3622.6,4.56971596]
[1736090726002,4.51416132,3622.7,3622.6,4.32121596]
[1736090727503,4.51416132,3622.7,3622.6,4.56971596]
[1736090727899,4.51416132,3622.7,3622.6,4.32121596]
[1736090735419,4.26567132,3622.7,3622.6,4.56971596]
[1736090735612,4.26567132,3622.7,3622.6,5.26161596]
[1736090737317,4.26567132,3622.7,3622.6,5.60141603]
[1736090737318,1.25493038,3622.7,3622.6,5.60141603]
[1736090739124,1.00644038,3622.7,3622.6,5.60141603]
[1736090740722,1.25493038,3622.7,3622.6,5.35291603]
[1736090741418,1.25493038,3622.7,3622.6,13.97100601]
[1736090742527,1.25493038,3622.7,3622.6,5.35291603]
[1736090744726,1.00644038,3622.7,3622.6,5.35291603]
[1736090748023,1.25493038,3622.7,3622.6,4.66101603]
[1736090748323,1.96583038,3622.7,3622.6,4.66101603]
[1736090748521,1.96583038,3622.7,3622.6,11.13945584]
[1736090749921,1.96583038,3622.7,3622.6,4.66101603]
[1736090751025,4.13843996,3622.7,3622.6,4.66101603]
[1736090752127,3.13199958,3622.7,3622.6,4.66101603]
[1736090752326,1.96583038,3622.7,3622.6,4.66101603]
[1736090754324,2.69243038,3622.7,3622.6,4.66101603]
[1736090755020,2.69243038,3622.7,3622.6,11.13945584]
[1736090758158,2.69243038,3622.7,3622.6,11.13945584]
[1736090758557,4.86534428,3622.7,3622.6,11.13945584]
[1736090759642,4.61685428,3622.7,3622.6,11.13945584]
[1736090763333,4.86534428,3622.7,3622.6,11.13945584]
[1736090764232,2.69243038,3622.7,3622.6,11.13945584]
[1736090765933,2.44394038,3622.7,3622.6,11.13945584]
[1736090766134,2.44394038,3622.7,3622.6,11.38795584]
[1736090767135,2.44394038,3622.7,3622.6,11.13945584]
[1736090767832,4.61693104,3622.7,3622.6,11.13945584]
[1736090770240,4.61693104,3622.7,3622.6,11.38795584]
[1736090771335,3.17943104,3622.7,3622.6,11.38795584]
[1736090771849,1.00644038,3622.7,3622.6,11.38795584]
[1736090772148,1.00644038,3622.7,3622.6,11.13945584]
[1736090775342,1.00644038,3622.7,3622.6,11.38795584]
[1736090776052,3.25923094,3622.8,3622.7,0.24849]
[1736090776549,3.25923094,3622.8,3622.7,1.69939]
[1736090777251,3.25923094,3622.9,3622.7,12.83884584]
[1736090777449,1.00644038,3622.8,3622.7,12.83884584]
[1736090780146,3.25923094,3622.9,3622.8,0.24848]
[1736090780354,4.26567132,3622.9,3622.8,0.24848]
[1736090781145,1.00644038,3622.9,3622.8,13.52758601]
[1736090781850,2.17280329,3623.1,3622.9,0.24848]
[1736090782046,2.17280329,3623.1,3622.8,13.52758601]
[1736090782252,2.17280329,3623.0,3622.8,4.90949603]
[1736090782553,1.00644038,3622.9,3622.8,4.90949603]
[1736090783947,1.00644038,3622.9,3622.8,13.52758601]
[1736090785555,1.00644038,3622.9,3622.8,4.90949603]
[1736090786957,2.17280329,3623.1,3623.0,0.24847]
[1736090787357,2.17280329,3623.1,3623.0,1.34047]
[1736090788659,1.00644038,3623.2,3623.1,0.24846]
[1736090788847,2.17280329,3623.5,3623.0,23.68499107]
[1736090789053,1.00644038,3623.2,3623.1,0.92236]
[1736090790359,1.00644038,3623.2,3623.1,12.05764911]
[1736090794055,1.00644038,3623.2,3623.1,5.58337603]
[1736090794961,2.17280329,3623.6,3623.1,5.33491603]
[1736090795158,2.17280329,3623.6,3623.2,0.69]
[1736090795159,3.17924367,3623.6,3623.2,0.69]
[1736090795357,1.00644038,3623.4,3623.2,0.93845]
[1736090796157,2.17280329,3623.6,3623.2,0.69]
[1736090796356,1.00644038,3623.4,3623.3,0.24844]
[1736090796553,2.17280329,3623.6,3623.2,1.69644038]
[1736090796754,2.17280329,3623.7,3623.6,0.24843]
[1736090797061,3.17924367,3623.7,3623.6,0.24843]
[1736090797257,2.17280329,3623.7,3623.6,1.25487038]
[1736090798259,1.00644038,3624.1,3624.0,0.2484]
[1736090798860,1.00644038,3624.1,3624.0,0.928]
[1736090800057,1.00644038,3624.1,3624.0,1.6156]
[1736090802264,1.00644038,3624.3,3624.2,0.24839]
[1736090802458,1.00644038,3624.3,3624.1,0.24839]
[1736090802662,2.1562,3624.4,3624.2,0.24838]
[1736090802866,1.00644038,3624.3,3624.2,0.24838]
[1736090803974,1.00644038,3624.3,3624.0,1.3672]
[1736090804165,1.00644038,3624.1,3624.0,0.6796]
[1736090804466,2.40458,3624.4,3624.0,0.928]
[1736090804678,1.00644038,3624.1,3624.0,0.928]
[1736090805470,1.00644038,3624.1,3624.0,0.6796]
[1736090805672,1.00644038,3624.1,3624.0,0.928]
[1736090806072,1.00644038,3624.1,3624.0,0.6796]
[1736090806568,1.00644038,3624.1,3624.0,0.928]
[1736090806963,1.00644038,3624.1,3624.0,0.6796]
[1736090811972,1.00644038,3624.1,3623.7,3.9239]
[1736090812174,1.25486038,3623.8,3623.5,5.40000454]
[1736090812476,1.00644038,3623.6,3623.4,5.64844454]
[1736090812871,1.71354038,3623.6,3623.4,5.64844454]
[1736090813668,1.71354038,3623.6,3623.4,1.34044]
[1736090819280,0.7071,3623.6,3623.5,0.24844]
[1736090820979,0.7071,3623.6,3623.4,1.34044]
[1736090821174,0.7071,3623.6,3623.4,1.092]
[1736090821381,0.7071,3623.6,3623.5,0.24844]
[1736090821983,1.00644038,3623.9,3623.6,0.24842]
[1736090822283,1.00644038,3623.7,3623.5,0.24843]
[1736090822482,1.00644038,3623.7,3623.5,0.90673]
[1736090823475,1.00644038,3623.7,3623.5,0.6583]
[1736090823784,1.00644038,3623.7,3623.4,1.34044]
[1736090824279,1.00644038,3623.7,3623.5,0.24843]
[1736090825889,1.00644038,3623.7,3623.4,1.34044]
[1736090826289,1.00644038,3623.7,3623.5,0.24843]
[1736090826489,1.00644038,3623.7,3623.4,1.092]
[1736090826690,1.25487038,3623.7,3623.4,1.34044]
[1736090826984,1.00644038,3623.7,3623.4,1.092]
[1736090827291,1.00644038,3623.5,3623.4,1.092]
[1736090827681,2.37904038,3623.5,3623.4,1.092]
[1736090827886,2.37904038,3623.5,3623.3,3.2078]
[1736090828187,0.92754,3623.4,3623.3,3.2078]
[1736090830082,0.92754,3623.4,3623.0,4.30800454]
[1736090830083,0.24846,3623.1,3623.0,4.30800454]
[1736090830279,1.25490038,3623.1,3623.0,4.30800454]
[1736090831101,1.00644038,3623.1,3623.0,4.30800454]
[1736090831287,1.25490038,3623.1,3623.0,4.30800454]
[1736090831985,0.24848,3622.8,3622.7,4.30800454]
[1736090833094,0.24848,3622.8,3622.5,5.31444492]
[1736090834193,1.25492038,3622.9,3622.5,1.25494038]
[1736090835394,1.25492038,3622.9,3622.5,5.56294492]
[1736090836687,1.25492038,3622.9,3622.5,1.25494038]
[1736090837090,1.25492038,3622.9,3622.6,0.2485]
[1736090838092,1.00644038,3622.9,3622.6,0.2485]
[1736090838302,1.00644038,3622.9,3622.5,1.00644038]
[1736090838793,1.00644038,3622.9,3622.6,0.24849]
[1736090839191,1.00644038,3622.9,3622.7,0.6838]
[1736090840192,1.00644038,3622.9,3622.7,0.93229]
[1736090840889,2.0177,3623.0,3622.7,1.69024038]
[1736090841096,2.0177,3623.0,3622.9,0.24848]
[1736090841894,1.00644038,3623.1,3622.9,0.24848]
[1736090844300,1.00644038,3623.1,3622.7,1.69024038]
[1736090844598,1.00644038,3623.1,3622.8,0.24848]
[1736090844898,1.00644038,3622.9,3622.8,0.24848]
[1736090845490,1.00644038,3622.9,3622.7,0.93229]
[1736090845695,0.6359,3622.8,3622.7,0.93229]
[1736090847498,0.88439,3622.8,3622.4,0.24851]
[1736090847698,2.34584038,3622.7,3622.4,0.88901]
[1736090848001,2.34584038,3622.7,3622.5,0.2485]
[1736090849399,2.34584038,3622.7,3622.6,0.2485]
[1736090851403,2.34584038,3622.7,3622.5,0.2485]
[1736090851905,1.3394,3622.7,3622.6,0.2485]
[1736090858407,1.3394,3622.7,3622.5,1.00644038]
[1736090858611,2.34584038,3622.7,3622.6,0.2485]
[1736090859012,2.34584038,3622.7,3622.5,4.30800454]
[1736090859212,2.34584038,3622.7,3622.5,4.55650454]
[1736090860716,2.34584038,3622.7,3622.6,0.2485]
[1736090862019,2.34584038,3622.7,3622.5,4.55650454]
[1736090862326,2.34584038,3622.7,3622.5,4.30800454]
[1736090862620,2.34584038,3622.7,3622.6,0.2485]
[1736090864721,1.3394,3622.7,3622.6,0.2485]
[1736090865420,1.3394,3622.7,3622.6,4.55650454]
[1736090866222,2.34584038,3622.7,3622.6,4.30800454]
[1736090866425,2.34584038,3622.7,3622.6,4.55650454]
[1736090867625,2.34584038,3622.7,3622.6,4.30800454]
[1736090867828,2.59433038,3622.7,3622.6,4.30800454]
[1736090868126,2.34584038,3622.7,3622.6,4.30800454]
[1736090868322,2.34584038,3622.7,3622.5,4.30800454]
[1736090868825,2.59433038,3622.7,3622.5,4.30800454]
[1736090869324,2.34584038,3622.7,3622.5,4.30800454]
[1736090869531,2.34584038,3622.7,3622.6,4.30800454]
[1736090869719,2.59433038,3622.7,3622.6,4.30800454]
[1736090871327,2.59433038,3622.7,3622.5,0.2485]
[1736090872629,2.17127294,3622.6,3622.5,0.2485]
[1736090873630,5.85356132,3622.7,3622.6,0.2485]
[1736090874832,5.85356132,3622.7,3622.6,4.55650454]
[1736090875334,5.85356132,3622.7,3622.6,4.30800454]
[1736090875520,5.85356132,3622.7,3622.6,4.55650454]
[1736090877429,5.85356132,3622.7,3622.6,4.30800454]
[1736090878233,5.85356132,3622.7,3622.6,4.55650454]
[1736090878635,2.59433038,3622.7,3622.6,0.2485]
[1736090881232,0.2485,3622.6,3622.5,4.55650454]
[1736090882536,3.50675252,3622.6,3622.5,0.2485]
[1736090883636,3.50675252,3622.6,3622.4,4.30800454]
[1736090883837,1.00644038,3622.5,3622.4,4.55651454]
[1736090885138,3.17830089,3622.5,3622.4,4.55651454]
[1736090885629,3.42680089,3622.5,3622.4,4.55651454]
[1736090886741,3.42680089,3622.5,3622.4,4.30800454]
[1736090891245,1.00644038,3622.5,3622.4,4.30800454]
[1736090891440,3.25825252,3622.6,3622.4,4.30800454]
[1736090891748,3.25825252,3622.6,3622.5,0.2485]
[1736090891936,4.33328157,3622.8,3622.4,5.31444492]
[1736090892133,2.51768157,3622.8,3622.7,4.46273038]
[1736090892446,1.77608157,3622.8,3622.7,5.55373038]
[1736090892633,6.46704732,3623.5,3622.8,0.24848]
[1736090892634,2.17158722,3622.9,3622.8,0.24848]
[1736090893036,2.17158722,3622.9,3622.8,5.24848]
[1736090894447,3.74490722,3623.8,3623.4,0.24844]
[1736090894640,3.74490722,3623.8,3623.4,2.09744038]
[1736090894838,3.49648722,3623.8,3623.4,2.09744038]
[1736090895042,3.74490722,3623.8,3623.4,2.09744038]
[1736090895641,0.24842,3623.7,3623.5,4.3220421]
[1736090896345,1.3249,3623.8,3623.5,4.3220421]
[1736090896548,0.24842,3623.7,3623.5,4.3220421]
[1736090897046,0.24842,3623.7,3623.4,6.41948248]
[1736090897845,1.25486038,3623.7,3623.4,6.41948248]
[1736090898544,1.3249,3623.8,3623.6,1.00644038]
[1736090898750,1.3249,3623.8,3623.7,0.24842]
[1736090898950,1.3249,3623.8,3623.6,1.00644038]
[1736090899149,1.3249,3623.8,3623.7,0.24842]
[1736090901746,0.6753,3624.0,3623.7,3.2078]
[1736090901943,0.6753,3624.0,3623.9,1.00644038]
[1736090902743,0.6753,3624.0,3623.9,1.25485038]
[1736090904346,1.3181,3624.3,3623.9,1.00644038]
[1736090904547,1.3181,3624.3,3624.1,1.00644038]
[1736090904753,1.3181,3624.3,3624.1,1.25483038]
[1736090905047,1.56648,3624.3,3624.1,1.00644038]
[1736090905448,1.3181,3624.3,3624.1,1.00644038]
[1736090905653,1.3181,3624.3,3623.9,0.24841]
[1736090905654,1.00644038,3624.2,3623.9,1.00644038]
[1736090906054,1.25483038,3624.2,3623.9,1.00644038]
[1736090908053,1.00644038,3624.2,3623.9,1.00644038]
[1736090908249,0.24839,3624.2,3623.9,1.25484038]
[1736090909258,1.56648,3624.3,3623.9,1.25484038]
[1736090910855,1.56648,3624.3,3624.1,1.00644038]
[1736090910856,1.3181,3624.3,3624.1,1.00644038]
[1736090911260,1.56648,3624.3,3624.1,1.00644038]
[1736090911658,1.3181,3624.3,3624.1,1.25483038]
[1736090911958,3.2078,3624.5,3624.3,0.24837]
[1736090912161,2.0328,3624.9,3624.3,1.00644038]
[1736090912358,2.0328,3624.9,3624.5,1.00644038]
[1736090912573,2.0328,3624.9,3624.8,0.24835]
[1736090912858,2.0328,3624.9,3624.8,1.33835]
[1736090914446,0.6786,3624.9,3624.8,1.33835]
[1736090914659,1.3403,3625.5,3625.1,0.24832]
[1736090914856,0.6924,3625.4,3625.3,1.00644038]
[1736090915655,0.94071,3625.4,3625.3,1.00644038]
[1736090915853,0.6924,3625.4,3625.1,4.21424038]
[1736090916159,0.24833,3625.2,3624.9,1.00644038]
[1736090916356,0.24832,3625.2,3624.9,1.00644038]
[1736090917061,0.24832,3625.2,3624.8,1.33835]
[1736090917661,0.24832,3625.3,3624.9,0.24834]
[1736090917862,0.24833,3625.1,3625.0,1.09]
[1736090919259,0.24833,3625.1,3624.4,0.24837]
[1736090919260,0.24835,3624.8,3624.6,1.09]
[1736090919562,1.2845,3624.7,3624.6,1.09]
[1736090919957,3.2078,3625.6,3624.6,3.31690847]